[Event "Titled Tuesday Blitz March 21 Late 2023"]
[White "Paravyan, David"]
[Black "Zakhartsov, Vladimir"]
[WhiteFideId "4194985"]
[BlackFideId "4145097"]
[WhiteElo "2577"]
[BlackElo "2521"]
[Result "0-1"]
[Round "07"]
[TimeControl "180+2"]
[Date "2023.03.21"]
[WhiteClock "0:00:03"]
[BlackClock "0:00:14"]

1. Nf3 {[%clk 0:03:00]}  c5 {[%clk 0:02:57]} 2. c4 {[%clk 0:03:00]}  Nc6 {[%clk 0:02:56]} 3. Nc3 {[%clk 0:02:59]}  g6 {[%clk 0:02:56]} 4. e3 {[%clk 0:02:59]}  Nf6 {[%clk 0:02:49]} 5. d4 {[%clk 0:02:59]}  cxd4 {[%clk 0:02:49]} 6. exd4 {[%clk 0:03:00]}  d5 {[%clk 0:02:50]} 7. cxd5 {[%clk 0:03:01]}  Nxd5 {[%clk 0:02:50]} 8. Qb3 {[%clk 0:03:01]}  Nxc3 {[%clk 0:02:44]} 9. Bc4 {[%clk 0:03:02]}  e6 {[%clk 0:02:41]} 10. bxc3 {[%clk 0:03:00]}  Bg7 {[%clk 0:02:41]} 11. Ba3 {[%clk 0:02:59]}  Bf8 {[%clk 0:02:42]} 12. Bxf8 {[%clk 0:02:58]}  Kxf8 {[%clk 0:02:43]} 13. O-O {[%clk 0:02:58]}  Kg7 {[%clk 0:02:43]} 14. Rab1 {[%clk 0:02:54]}  Na5 {[%clk 0:02:41]} 15. Qb4 {[%clk 0:02:54]}  Nxc4 {[%clk 0:02:41]} 16. Qxc4 {[%clk 0:02:55]}  b6 {[%clk 0:02:41]} 17. Ne5 {[%clk 0:02:53]}  Bb7 {[%clk 0:02:39]} 18. Qd3 {[%clk 0:02:41]}  Qd5 {[%clk 0:02:32]} 19. Qg3 {[%clk 0:02:39]}  Rac8 {[%clk 0:02:28]} 20. c4 {[%clk 0:02:24]}  Qxd4 {[%clk 0:02:03]} 21. Rbd1 {[%clk 0:02:23]}  Qe4 {[%clk 0:02:03]} 22. Rfe1 {[%clk 0:02:00]}  Rhd8 {[%clk 0:01:59]} 23. Nd7 {[%clk 0:00:43]}  Qxg2+ {[%clk 0:01:04]} 24. Qxg2 {[%clk 0:00:42]}  Bxg2 {[%clk 0:01:05]} 25. Kxg2 {[%clk 0:00:40]}  Rxc4 {[%clk 0:01:06]} 26. Ne5 {[%clk 0:00:32]}  Rxd1 {[%clk 0:00:48]} 27. Rxd1 {[%clk 0:00:33]}  Rc7 {[%clk 0:00:48]} 28. Rd7 {[%clk 0:00:09]}  Rxd7 {[%clk 0:00:45]} 29. Nxd7 {[%clk 0:00:10]}  f6 {[%clk 0:00:38]} 30. Kf3 {[%clk 0:00:11]}  Kf7 {[%clk 0:00:36]} 31. Nb8 {[%clk 0:00:11]}  e5 {[%clk 0:00:32]} 32. Nc6 {[%clk 0:00:10]}  a6 {[%clk 0:00:31]} 33. Nb4 {[%clk 0:00:03]}  a5 {[%clk 0:00:30]} 34. Nd5 {[%clk 0:00:04]}  b5 {[%clk 0:00:31]} 35. Ke4 {[%clk 0:00:04]}  b4 {[%clk 0:00:27]} 36. Kd3 {[%clk 0:00:02]}  Ke6 {[%clk 0:00:24]} 37. Ne3 {[%clk 0:00:03]}  f5 {[%clk 0:00:20]} 38. Kc4 {[%clk 0:00:03]}  f4 {[%clk 0:00:19]} 39. Nd5 {[%clk 0:00:02]}  g5 {[%clk 0:00:18]} 40. Nc7+ {[%clk 0:00:01]}  Kf5 {[%clk 0:00:18]} 41. Kb5 {[%clk 0:00:01]}  e4 {[%clk 0:00:17]} 42. Kxa5 {[%clk 0:00:02]}  e3 {[%clk 0:00:16]} 43. fxe3 {[%clk 0:00:03]}  f3 {[%clk 0:00:14]} 44. Nb5 {[%clk 0:00:02]}  f2 {[%clk 0:00:14]} 45. Nd4+ {[%clk 0:00:03]}  Kf6 {[%clk 0:00:14]} 0-1


[Site "https://www.chess.com"]

[Event "Titled Tuesday Blitz March 21 Late 2023"]
[White "Matlakov, Maxim"]
[Black "Tanenbaum, Zachary"]
[WhiteFideId "4168003"]
[BlackFideId "2060850"]
[WhiteElo "2666"]
[BlackElo "2175"]
[Result "1-0"]
[Round "07"]
[TimeControl "180+2"]
[Date "2023.03.21"]
[WhiteClock "0:01:34"]
[BlackClock "0:00:09"]

1. e4 {[%clk 0:03:00]}  e5 {[%clk 0:03:00]} 2. Nf3 {[%clk 0:03:00]}  Nc6 {[%clk 0:03:01]} 3. Bb5 {[%clk 0:03:00]}  a6 {[%clk 0:03:01]} 4. Ba4 {[%clk 0:03:01]}  d6 {[%clk 0:03:02]} 5. c3 {[%clk 0:03:00]}  Nf6 {[%clk 0:03:02]} 6. Qe2 {[%clk 0:02:58]}  Be7 {[%clk 0:03:02]} 7. O-O {[%clk 0:02:58]}  O-O {[%clk 0:03:02]} 8. d4 {[%clk 0:02:58]}  b5 {[%clk 0:03:02]} 9. Bb3 {[%clk 0:02:53]}  Bb7 {[%clk 0:03:01]} 10. Rd1 {[%clk 0:02:50]}  Qc8 {[%clk 0:03:00]} 11. h3 {[%clk 0:02:49]}  h6 {[%clk 0:02:59]} 12. Nbd2 {[%clk 0:02:48]}  Re8 {[%clk 0:02:59]} 13. Nf1 {[%clk 0:02:48]}  Bf8 {[%clk 0:02:59]} 14. Ng3 {[%clk 0:02:48]}  exd4 {[%clk 0:02:17]} 15. cxd4 {[%clk 0:02:48]}  Na5 {[%clk 0:02:17]} 16. Bc2 {[%clk 0:02:42]}  Nxe4 {[%clk 0:02:15]} 17. Bxe4 {[%clk 0:02:22]}  Bxe4 {[%clk 0:02:13]} 18. Nxe4 {[%clk 0:02:21]}  d5 {[%clk 0:02:14]} 19. Nf6+ {[%clk 0:02:17]}  gxf6 {[%clk 0:02:13]} 20. Qd3 {[%clk 0:02:13]}  Nc4 {[%clk 0:02:00]} 21. b3 {[%clk 0:02:01]}  Nd6 {[%clk 0:01:59]} 22. Bf4 {[%clk 0:02:01]}  Ne4 {[%clk 0:01:57]} 23. Rac1 {[%clk 0:02:01]}  c6 {[%clk 0:01:53]} 24. Nh4 {[%clk 0:01:57]}  Kh8 {[%clk 0:01:11]} 25. Qf3 {[%clk 0:01:56]}  Qe6 {[%clk 0:00:57]} 26. Qh5 {[%clk 0:01:55]}  f5 {[%clk 0:00:47]} 27. Be5+ {[%clk 0:01:52]}  Kg8 {[%clk 0:00:36]} 28. Nxf5 {[%clk 0:01:49]}  Qg6 {[%clk 0:00:36]} 29. Qf3 {[%clk 0:01:49]}  Ng5 {[%clk 0:00:33]} 30. Qg4 {[%clk 0:01:47]}  h5 {[%clk 0:00:34]} 31. Qg3 {[%clk 0:01:42]}  Qxf5 {[%clk 0:00:33]} 32. Rxc6 {[%clk 0:01:36]}  Kh7 {[%clk 0:00:21]} 33. Rf6 {[%clk 0:01:35]}  Qc2 {[%clk 0:00:17]} 34. Qxg5 {[%clk 0:01:34]}  Qxd1+ {[%clk 0:00:17]} 35. Kh2 {[%clk 0:01:35]}  Re6 {[%clk 0:00:11]} 36. Rxf7+ {[%clk 0:01:34]}  Bg7 {[%clk 0:00:09]} 37. Qxg7# {[%clk 0:01:34]} 1-0


[Site "https://www.chess.com"]

[Event "Titled Tuesday Blitz March 21 Late 2023"]
[White "Hansen, Eric"]
[Black "Klekowski, Maciej"]
[WhiteFideId "2606771"]
[BlackFideId "1132717"]
[WhiteElo "2569"]
[BlackElo "2540"]
[Result "1-0"]
[Round "07"]
[TimeControl "180+2"]
[Date "2023.03.21"]
[WhiteClock "0:00:10"]
[BlackClock "0:00:01"]

1. Nf3 {[%clk 0:02:53]}  c5 {[%clk 0:02:57]} 2. g3 {[%clk 0:02:42]}  g6 {[%clk 0:02:56]} 3. Bg2 {[%clk 0:02:42]}  Bg7 {[%clk 0:02:56]} 4. O-O {[%clk 0:02:42]}  Nf6 {[%clk 0:02:56]} 5. b3 {[%clk 0:02:38]}  O-O {[%clk 0:02:54]} 6. Bb2 {[%clk 0:02:36]}  Nc6 {[%clk 0:02:54]} 7. c4 {[%clk 0:02:27]}  d5 {[%clk 0:02:51]} 8. cxd5 {[%clk 0:02:27]}  Nxd5 {[%clk 0:02:49]} 9. Bxg7 {[%clk 0:02:27]}  Kxg7 {[%clk 0:02:50]} 10. Qc1 {[%clk 0:02:27]}  b6 {[%clk 0:02:45]} 11. d4 {[%clk 0:02:18]}  Nxd4 {[%clk 0:01:49]} 12. Qb2 {[%clk 0:01:56]}  e5 {[%clk 0:01:11]} 13. e3 {[%clk 0:01:55]}  Nxf3+ {[%clk 0:00:57]} 14. Bxf3 {[%clk 0:01:55]}  Nc7 {[%clk 0:00:07]} 15. Bxa8 {[%clk 0:00:51]}  Nxa8 {[%clk 0:00:08]} 16. Qxe5+ {[%clk 0:00:51]}  Kg8 {[%clk 0:00:07]} 17. Nc3 {[%clk 0:00:50]}  Bb7 {[%clk 0:00:06]} 18. Rad1 {[%clk 0:00:50]}  Qc8 {[%clk 0:00:07]} 19. e4 {[%clk 0:00:48]}  Nc7 {[%clk 0:00:06]} 20. f3 {[%clk 0:00:46]}  Re8 {[%clk 0:00:05]} 21. Qf6 {[%clk 0:00:43]}  Ne6 {[%clk 0:00:05]} 22. Nb5 {[%clk 0:00:43]}  Rf8 {[%clk 0:00:04]} 23. Rf2 {[%clk 0:00:40]}  Ba6 {[%clk 0:00:03]} 24. Nd6 {[%clk 0:00:38]}  Qc7 {[%clk 0:00:03]} 25. Kg2 {[%clk 0:00:19]}  Nd4 {[%clk 0:00:04]} 26. e5 {[%clk 0:00:17]}  Bb7 {[%clk 0:00:03]} 27. h4 {[%clk 0:00:16]}  h5 {[%clk 0:00:02]} 28. Rd3 {[%clk 0:00:14]}  Bd5 {[%clk 0:00:01]} 29. Re3 {[%clk 0:00:12]}  Qc6 {[%clk 0:00:01]} 30. Ne4 {[%clk 0:00:10]}  Bxe4 {[%clk 0:00:01]} 31. Rxe4 {[%clk 0:00:10]} 1-0


[Site "https://www.chess.com"]

[Event "Titled Tuesday Blitz March 21 Late 2023"]
[White "Korchmar, Vasiliy"]
[Black "Grigoriants, Sergey"]
[WhiteFideId "24131750"]
[BlackFideId "4130804"]
[WhiteElo "2370"]
[BlackElo "2502"]
[Result "0-1"]
[Round "07"]
[TimeControl "180+2"]
[Date "2023.03.21"]
[WhiteClock "0:00:01"]
[BlackClock "0:00:12"]

1. e4 {[%clk 0:03:00]}  c5 {[%clk 0:02:52]} 2. Nf3 {[%clk 0:03:01]}  Nc6 {[%clk 0:02:52]} 3. d4 {[%clk 0:03:01]}  cxd4 {[%clk 0:02:53]} 4. Nxd4 {[%clk 0:03:02]}  Nf6 {[%clk 0:02:51]} 5. Nc3 {[%clk 0:03:02]}  e6 {[%clk 0:02:50]} 6. g3 {[%clk 0:02:41]}  Bb4 {[%clk 0:02:36]} 7. Bg2 {[%clk 0:02:41]}  O-O {[%clk 0:02:13]} 8. O-O {[%clk 0:02:40]}  d6 {[%clk 0:02:06]} 9. Nce2 {[%clk 0:02:05]}  Bc5 {[%clk 0:01:56]} 10. b3 {[%clk 0:01:56]}  e5 {[%clk 0:01:52]} 11. Nxc6 {[%clk 0:01:08]}  bxc6 {[%clk 0:01:51]} 12. c4 {[%clk 0:01:09]}  Bg4 {[%clk 0:01:30]} 13. h3 {[%clk 0:01:07]}  Bxe2 {[%clk 0:01:28]} 14. Qxe2 {[%clk 0:01:08]}  Bd4 {[%clk 0:01:28]} 15. Rb1 {[%clk 0:01:03]}  Nd7 {[%clk 0:01:28]} 16. Kh2 {[%clk 0:01:01]}  Nc5 {[%clk 0:01:28]} 17. f4 {[%clk 0:00:38]}  a5 {[%clk 0:01:27]} 18. Be3 {[%clk 0:00:26]}  Ne6 {[%clk 0:01:04]} 19. f5 {[%clk 0:00:25]}  Bxe3 {[%clk 0:01:04]} 20. Qxe3 {[%clk 0:00:12]}  Nd4 {[%clk 0:01:04]} 21. f6 {[%clk 0:00:12]}  Re8 {[%clk 0:00:44]} 22. Qg5 {[%clk 0:00:08]}  Ne6 {[%clk 0:00:38]} 23. Qg4 {[%clk 0:00:07]}  g6 {[%clk 0:00:37]} 24. h4 {[%clk 0:00:06]}  h5 {[%clk 0:00:35]} 25. Qe2 {[%clk 0:00:06]}  Nd4 {[%clk 0:00:30]} 26. Qe3 {[%clk 0:00:07]}  Kh7 {[%clk 0:00:30]} 27. Rf2 {[%clk 0:00:06]}  Rb8 {[%clk 0:00:27]} 28. Rbf1 {[%clk 0:00:06]}  a4 {[%clk 0:00:26]} 29. bxa4 {[%clk 0:00:04]}  Rb4 {[%clk 0:00:23]} 30. g4 {[%clk 0:00:03]}  hxg4 {[%clk 0:00:16]} 31. h5 {[%clk 0:00:04]}  Rg8 {[%clk 0:00:17]} 32. Qg5 {[%clk 0:00:03]}  Qf8 {[%clk 0:00:16]} 33. Kg3 {[%clk 0:00:03]}  Qh6 {[%clk 0:00:16]} 34. hxg6+ {[%clk 0:00:02]}  Rxg6 {[%clk 0:00:16]} 35. Qxh6+ {[%clk 0:00:01]}  Kxh6 {[%clk 0:00:15]} 36. Rh1+ {[%clk 0:00:01]}  Kg5 {[%clk 0:00:15]} 37. Rh7 {[%clk 0:00:02]}  Rxc4 {[%clk 0:00:12]} 38. a5 {[%clk 0:00:01]}  Rc3+ {[%clk 0:00:12]} 0-1


[Site "https://www.chess.com"]

[Event "Titled Tuesday Blitz March 21 Late 2023"]
[White "Duda, Jan-Krzysztof"]
[Black "Zamorano, Jorge"]
[WhiteFideId "1170546"]
[BlackFideId "173770"]
[WhiteElo "2790"]
[BlackElo "2331"]
[Result "1-0"]
[Round "07"]
[TimeControl "180+2"]
[Date "2023.03.21"]
[WhiteClock "0:00:16"]
[BlackClock "0:00:06"]

1. e4 {[%clk 0:03:00]}  c5 {[%clk 0:02:50]} 2. b3 {[%clk 0:03:00]}  Nf6 {[%clk 0:02:48]} 3. e5 {[%clk 0:02:59]}  Nd5 {[%clk 0:02:48]} 4. Nc3 {[%clk 0:02:57]}  Nxc3 {[%clk 0:02:44]} 5. dxc3 {[%clk 0:02:58]}  d5 {[%clk 0:02:44]} 6. exd6 {[%clk 0:02:56]}  Qxd6 {[%clk 0:02:45]} 7. Qxd6 {[%clk 0:02:53]}  exd6 {[%clk 0:02:44]} 8. c4 {[%clk 0:02:54]}  Be7 {[%clk 0:02:27]} 9. Bb2 {[%clk 0:02:53]}  O-O {[%clk 0:02:28]} 10. O-O-O {[%clk 0:02:54]}  Nc6 {[%clk 0:02:27]} 11. g3 {[%clk 0:02:47]}  Bg4 {[%clk 0:02:23]} 12. Rd2 {[%clk 0:02:46]}  Rfe8 {[%clk 0:02:17]} 13. Be2 {[%clk 0:02:38]}  Bf5 {[%clk 0:02:06]} 14. h4 {[%clk 0:02:34]}  a5 {[%clk 0:01:30]} 15. a4 {[%clk 0:02:32]}  Ne5 {[%clk 0:01:26]} 16. f3 {[%clk 0:01:52]}  Rad8 {[%clk 0:01:23]} 17. Nh3 {[%clk 0:01:51]}  Bxh3 {[%clk 0:00:27]} 18. Rxh3 {[%clk 0:01:52]}  Bf6 {[%clk 0:00:26]} 19. Rh2 {[%clk 0:01:42]}  Nc6 {[%clk 0:00:26]} 20. Bxf6 {[%clk 0:01:40]}  gxf6 {[%clk 0:00:27]} 21. Bd3 {[%clk 0:01:22]}  Nd4 {[%clk 0:00:26]} 22. Be4 {[%clk 0:01:16]}  b6 {[%clk 0:00:26]} 23. g4 {[%clk 0:01:03]}  Rxe4 {[%clk 0:00:26]} 24. fxe4 {[%clk 0:01:04]}  Nf3 {[%clk 0:00:26]} 25. Rhf2 {[%clk 0:01:00]}  Nxd2 {[%clk 0:00:25]} 26. Kxd2 {[%clk 0:01:01]}  Kg7 {[%clk 0:00:22]} 27. Ke3 {[%clk 0:01:01]}  Re8 {[%clk 0:00:23]} 28. Rd2 {[%clk 0:01:01]}  Re6 {[%clk 0:00:23]} 29. Kf4 {[%clk 0:01:01]}  Kf8 {[%clk 0:00:23]} 30. Rd1 {[%clk 0:01:00]}  Ke7 {[%clk 0:00:22]} 31. Rd5 {[%clk 0:00:53]}  Kf8 {[%clk 0:00:23]} 32. c3 {[%clk 0:00:49]}  Kg7 {[%clk 0:00:20]} 33. b4 {[%clk 0:00:49]}  cxb4 {[%clk 0:00:16]} 34. cxb4 {[%clk 0:00:50]}  axb4 {[%clk 0:00:16]} 35. Rb5 {[%clk 0:00:50]}  Re5 {[%clk 0:00:16]} 36. Rxb6 {[%clk 0:00:47]}  Ra5 {[%clk 0:00:13]} 37. Rxb4 {[%clk 0:00:47]}  Kf8 {[%clk 0:00:12]} 38. h5 {[%clk 0:00:42]}  Ke7 {[%clk 0:00:12]} 39. h6 {[%clk 0:00:40]}  Ke6 {[%clk 0:00:12]} 40. Ke3 {[%clk 0:00:39]}  Rg5 {[%clk 0:00:10]} 41. Rb1 {[%clk 0:00:25]}  Rxg4 {[%clk 0:00:08]} 42. Ra1 {[%clk 0:00:25]}  Kd7 {[%clk 0:00:07]} 43. a5 {[%clk 0:00:25]}  Kc7 {[%clk 0:00:07]} 44. a6 {[%clk 0:00:20]}  Kb8 {[%clk 0:00:07]} 45. Rb1+ {[%clk 0:00:17]}  Ka7 {[%clk 0:00:08]} 46. Rb7+ {[%clk 0:00:18]}  Kxa6 {[%clk 0:00:08]} 47. Rxf7 {[%clk 0:00:19]}  Kb6 {[%clk 0:00:07]} 48. Kd4 {[%clk 0:00:15]}  Kc6 {[%clk 0:00:06]} 49. Rxf6 {[%clk 0:00:16]}  Rh4 {[%clk 0:00:06]} 50. c5 {[%clk 0:00:16]} 1-0


[Site "https://www.chess.com"]

[Event "Titled Tuesday Blitz March 21 Late 2023"]
[White "Popov, Mikhail"]
[Black "Terry, Renato"]
[WhiteFideId "4146182"]
[BlackFideId "3803457"]
[WhiteElo "2270"]
[BlackElo "2579"]
[Result "1-0"]
[Round "07"]
[TimeControl "180+2"]
[Date "2023.03.21"]
[WhiteClock "0:00:09"]
[BlackClock "0:00:02"]

1. d4 {[%clk 0:02:56]}  d5 {[%clk 0:02:59]} 2. c4 {[%clk 0:02:55]}  dxc4 {[%clk 0:03:00]} 3. Nf3 {[%clk 0:02:55]}  Nf6 {[%clk 0:03:01]} 4. Nc3 {[%clk 0:02:55]}  a6 {[%clk 0:03:01]} 5. e4 {[%clk 0:02:54]}  b5 {[%clk 0:02:59]} 6. e5 {[%clk 0:02:55]}  Nd5 {[%clk 0:02:59]} 7. a4 {[%clk 0:02:55]}  Bb7 {[%clk 0:02:54]} 8. e6 {[%clk 0:02:55]}  f6 {[%clk 0:02:49]} 9. Be2 {[%clk 0:02:47]}  g6 {[%clk 0:02:41]} 10. O-O {[%clk 0:02:45]}  Bg7 {[%clk 0:02:41]} 11. Re1 {[%clk 0:02:44]}  O-O {[%clk 0:01:46]} 12. Ne4 {[%clk 0:02:40]}  Ne3 {[%clk 0:01:39]} 13. Nxf6+ {[%clk 0:02:27]}  exf6 {[%clk 0:01:34]} 14. Bxe3 {[%clk 0:02:27]}  Re8 {[%clk 0:01:34]} 15. b3 {[%clk 0:02:15]}  cxb3 {[%clk 0:01:18]} 16. axb5 {[%clk 0:02:10]}  Bd5 {[%clk 0:01:19]} 17. bxa6 {[%clk 0:02:05]}  Nc6 {[%clk 0:01:19]} 18. Nd2 {[%clk 0:01:41]}  Rb8 {[%clk 0:01:09]} 19. a7 {[%clk 0:01:30]}  Ra8 {[%clk 0:01:10]} 20. Nxb3 {[%clk 0:01:30]}  Rxe6 {[%clk 0:01:03]} 21. Nc5 {[%clk 0:01:29]}  Re7 {[%clk 0:01:03]} 22. Bb5 {[%clk 0:00:41]}  Nxa7 {[%clk 0:01:01]} 23. Ba4 {[%clk 0:00:34]}  Nc8 {[%clk 0:00:56]} 24. Bb3 {[%clk 0:00:27]}  Nb6 {[%clk 0:00:56]} 25. Qc2 {[%clk 0:00:25]}  Re8 {[%clk 0:00:47]} 26. h3 {[%clk 0:00:22]}  f5 {[%clk 0:00:47]} 27. Rad1 {[%clk 0:00:19]}  Bxb3 {[%clk 0:00:45]} 28. Qxb3+ {[%clk 0:00:20]}  Qd5 {[%clk 0:00:46]} 29. Qd3 {[%clk 0:00:15]}  Nc4 {[%clk 0:00:35]} 30. Bf4 {[%clk 0:00:14]}  Nb2 {[%clk 0:00:36]} 31. Rxe8+ {[%clk 0:00:12]}  Rxe8 {[%clk 0:00:36]} 32. Qb5 {[%clk 0:00:13]}  Rd8 {[%clk 0:00:26]} 33. Qxb2 {[%clk 0:00:11]}  Qxc5 {[%clk 0:00:27]} 34. Qb3+ {[%clk 0:00:07]}  Qd5 {[%clk 0:00:26]} 35. Qxd5+ {[%clk 0:00:07]}  Rxd5 {[%clk 0:00:27]} 36. Bxc7 {[%clk 0:00:08]}  Kf7 {[%clk 0:00:22]} 37. Bb6 {[%clk 0:00:07]}  Rb5 {[%clk 0:00:22]} 38. Bc5 {[%clk 0:00:07]}  Bf6 {[%clk 0:00:23]} 39. Re1 {[%clk 0:00:07]}  Rb2 {[%clk 0:00:22]} 40. g3 {[%clk 0:00:06]}  g5 {[%clk 0:00:19]} 41. Kg2 {[%clk 0:00:06]}  Rb3 {[%clk 0:00:20]} 42. Rd1 {[%clk 0:00:04]}  Rc3 {[%clk 0:00:18]} 43. Rb1 {[%clk 0:00:03]}  f4 {[%clk 0:00:18]} 44. gxf4 {[%clk 0:00:02]}  gxf4 {[%clk 0:00:19]} 45. Rb7+ {[%clk 0:00:02]}  Kg6 {[%clk 0:00:20]} 46. Rb6 {[%clk 0:00:02]}  Kf5 {[%clk 0:00:20]} 47. Rb7 {[%clk 0:00:03]}  h5 {[%clk 0:00:18]} 48. Rf7 {[%clk 0:00:03]}  f3+ {[%clk 0:00:18]} 49. Kg3 {[%clk 0:00:03]}  h4+ {[%clk 0:00:19]} 50. Kh2 {[%clk 0:00:03]}  Ke6 {[%clk 0:00:20]} 51. Rf8 {[%clk 0:00:03]}  Bg5 {[%clk 0:00:16]} 52. Re8+ {[%clk 0:00:03]}  Kf5 {[%clk 0:00:16]} 53. Rf8+ {[%clk 0:00:04]}  Ke4 {[%clk 0:00:16]} 54. Re8+ {[%clk 0:00:04]}  Kd3 {[%clk 0:00:16]} 55. Bd6 {[%clk 0:00:03]}  Rc2 {[%clk 0:00:13]} 56. Kg1 {[%clk 0:00:03]}  Rc1+ {[%clk 0:00:14]} 57. Kh2 {[%clk 0:00:04]}  Rf1 {[%clk 0:00:15]} 58. Bg3 {[%clk 0:00:02]}  hxg3+ {[%clk 0:00:12]} 59. Kxg3 {[%clk 0:00:03]}  Kxd4 {[%clk 0:00:11]} 60. Kxf3 {[%clk 0:00:03]}  Kd5 {[%clk 0:00:11]} 61. Kg4 {[%clk 0:00:03]}  Rg1+ {[%clk 0:00:11]} 62. Kf3 {[%clk 0:00:03]}  Kd6 {[%clk 0:00:10]} 63. Rg8 {[%clk 0:00:04]}  Rh1 {[%clk 0:00:05]} 64. Rxg5 {[%clk 0:00:02]}  Rxh3+ {[%clk 0:00:06]} 65. Kf4 {[%clk 0:00:03]}  Ke6 {[%clk 0:00:06]} 66. Rg6+ {[%clk 0:00:03]}  Kf7 {[%clk 0:00:06]} 67. Ra6 {[%clk 0:00:04]}  Rb3 {[%clk 0:00:06]} 68. f3 {[%clk 0:00:04]}  Rb5 {[%clk 0:00:06]} 69. Kg4 {[%clk 0:00:05]}  Rc5 {[%clk 0:00:07]} 70. f4 {[%clk 0:00:04]}  Rb5 {[%clk 0:00:07]} 71. Rc6 {[%clk 0:00:04]}  Rd5 {[%clk 0:00:07]} 72. Rc3 {[%clk 0:00:05]}  Ra5 {[%clk 0:00:08]} 73. Rh3 {[%clk 0:00:06]}  Kg6 {[%clk 0:00:08]} 74. Rb3 {[%clk 0:00:06]}  Ra6 {[%clk 0:00:09]} 75. Rb5 {[%clk 0:00:06]}  Rc6 {[%clk 0:00:09]} 76. Rh5 {[%clk 0:00:07]}  Rc1 {[%clk 0:00:08]} 77. Rd5 {[%clk 0:00:06]}  Rg1+ {[%clk 0:00:06]} 78. Kf3 {[%clk 0:00:07]}  Kf6 {[%clk 0:00:07]} 79. Rd6+ {[%clk 0:00:07]}  Ke7 {[%clk 0:00:08]} 80. Rd5 {[%clk 0:00:07]}  Ke6 {[%clk 0:00:08]} 81. Rg5 {[%clk 0:00:07]}  Rf1+ {[%clk 0:00:08]} 82. Kg4 {[%clk 0:00:08]}  Kf6 {[%clk 0:00:08]} 83. Ra5 {[%clk 0:00:07]}  Rg1+ {[%clk 0:00:08]} 84. Kf3 {[%clk 0:00:08]}  Rb1 {[%clk 0:00:09]} 85. Ra6+ {[%clk 0:00:08]}  Ke7 {[%clk 0:00:09]} 86. Kg4 {[%clk 0:00:07]}  Kd7 {[%clk 0:00:09]} 87. Kg5 {[%clk 0:00:07]}  Ke7 {[%clk 0:00:10]} 88. Kg6 {[%clk 0:00:08]}  Rg1+ {[%clk 0:00:09]} 89. Kf5 {[%clk 0:00:08]}  Rg2 {[%clk 0:00:09]} 90. Ra7+ {[%clk 0:00:08]}  Ke8 {[%clk 0:00:07]} 91. Kf6 {[%clk 0:00:09]}  Rb2 {[%clk 0:00:06]} 92. Ra8+ {[%clk 0:00:09]}  Kd7 {[%clk 0:00:06]} 93. f5 {[%clk 0:00:10]}  Rb5 {[%clk 0:00:05]} 94. Ra7+ {[%clk 0:00:06]}  Kd6 {[%clk 0:00:04]} 95. Kg6 {[%clk 0:00:05]}  Rb1 {[%clk 0:00:02]} 96. f6 {[%clk 0:00:06]}  Rg1+ {[%clk 0:00:03]} 97. Kf7 {[%clk 0:00:06]}  Rf1 {[%clk 0:00:03]} 98. Ra2 {[%clk 0:00:05]}  Ke5 {[%clk 0:00:02]} 99. Re2+ {[%clk 0:00:06]}  Kd6 {[%clk 0:00:03]} 100. Kg7 {[%clk 0:00:06]}  Rg1+ {[%clk 0:00:03]} 101. Kf8 {[%clk 0:00:06]}  Kd7 {[%clk 0:00:03]} 102. f7 {[%clk 0:00:07]}  Rg3 {[%clk 0:00:03]} 103. Re4 {[%clk 0:00:07]}  Rg1 {[%clk 0:00:04]} 104. Rd4+ {[%clk 0:00:06]}  Kc7 {[%clk 0:00:04]} 105. Ke7 {[%clk 0:00:06]}  Re1+ {[%clk 0:00:04]} 106. Kf6 {[%clk 0:00:07]}  Rf1+ {[%clk 0:00:05]} 107. Ke6 {[%clk 0:00:07]}  Re1+ {[%clk 0:00:05]} 108. Kf5 {[%clk 0:00:08]}  Rf1+ {[%clk 0:00:02]} 109. Rf4 {[%clk 0:00:09]}  Rd1 {[%clk 0:00:02]} 110. f8=Q {[%clk 0:00:09]} 1-0


[Site "https://www.chess.com"]

[Event "Titled Tuesday Blitz March 21 Late 2023"]
[White "Ibarra Jerez, Jose Carlos"]
[Black "O`Gorman, Tom"]
[WhiteFideId "2226332"]
[BlackFideId "2508249"]
[WhiteElo "2638"]
[BlackElo "2271"]
[Result "1-0"]
[Round "07"]
[TimeControl "180+2"]
[Date "2023.03.21"]
[WhiteClock "0:01:33"]
[BlackClock "0:00:58"]

1. e4 {[%clk 0:03:00]}  e5 {[%clk 0:02:55]} 2. Nf3 {[%clk 0:03:01]}  Nc6 {[%clk 0:02:51]} 3. Bb5 {[%clk 0:03:02]}  a6 {[%clk 0:02:51]} 4. Bxc6 {[%clk 0:03:02]}  dxc6 {[%clk 0:02:52]} 5. O-O {[%clk 0:03:03]}  f6 {[%clk 0:02:51]} 6. d4 {[%clk 0:03:03]}  exd4 {[%clk 0:02:52]} 7. Nxd4 {[%clk 0:03:04]}  c5 {[%clk 0:02:52]} 8. Nb3 {[%clk 0:03:04]}  Qxd1 {[%clk 0:02:52]} 9. Rxd1 {[%clk 0:03:05]}  Bg4 {[%clk 0:02:52]} 10. f3 {[%clk 0:03:05]}  Be6 {[%clk 0:02:52]} 11. Bf4 {[%clk 0:03:06]}  c4 {[%clk 0:02:48]} 12. Na5 {[%clk 0:03:06]}  b6 {[%clk 0:02:29]} 13. Nc6 {[%clk 0:03:06]}  Bd7 {[%clk 0:02:29]} 14. Nd4 {[%clk 0:03:06]}  O-O-O {[%clk 0:02:28]} 15. Nc3 {[%clk 0:03:07]}  Ne7 {[%clk 0:02:27]} 16. Kf1 {[%clk 0:03:01]}  Nc6 {[%clk 0:02:25]} 17. Nd5 {[%clk 0:02:59]}  Ne5 {[%clk 0:02:20]} 18. Rd2 {[%clk 0:02:57]}  Bc5 {[%clk 0:02:16]} 19. Rad1 {[%clk 0:02:57]}  Rhe8 {[%clk 0:02:11]} 20. Ne3 {[%clk 0:02:51]}  b5 {[%clk 0:02:09]} 21. Ke2 {[%clk 0:02:49]}  Kb7 {[%clk 0:02:08]} 22. Ndf5 {[%clk 0:02:44]}  Kc8 {[%clk 0:01:43]} 23. Nxg7 {[%clk 0:02:33]}  Rg8 {[%clk 0:01:43]} 24. Nh5 {[%clk 0:02:33]}  Rg6 {[%clk 0:01:39]} 25. g4 {[%clk 0:02:32]}  Bxe3 {[%clk 0:01:32]} 26. Kxe3 {[%clk 0:02:32]}  c6 {[%clk 0:01:27]} 27. Nxf6 {[%clk 0:02:22]}  c3 {[%clk 0:01:24]} 28. Bxe5 {[%clk 0:02:08]}  cxd2 {[%clk 0:01:24]} 29. Rxd2 {[%clk 0:02:07]}  Be6 {[%clk 0:01:19]} 30. Rxd8+ {[%clk 0:02:03]}  Kxd8 {[%clk 0:01:20]} 31. Nxh7 {[%clk 0:02:02]}  Bxa2 {[%clk 0:01:20]} 32. Ng5 {[%clk 0:01:52]}  Kd7 {[%clk 0:01:17]} 33. h4 {[%clk 0:01:51]}  a5 {[%clk 0:01:16]} 34. f4 {[%clk 0:01:48]}  a4 {[%clk 0:01:14]} 35. h5 {[%clk 0:01:45]}  Rh6 {[%clk 0:01:11]} 36. Bg7 {[%clk 0:01:45]}  Rd6 {[%clk 0:01:09]} 37. e5 {[%clk 0:01:41]}  Rd1 {[%clk 0:01:07]} 38. f5 {[%clk 0:01:38]}  b4 {[%clk 0:01:04]} 39. e6+ {[%clk 0:01:37]}  Ke7 {[%clk 0:01:04]} 40. f6+ {[%clk 0:01:37]}  Kd8 {[%clk 0:01:02]} 41. f7 {[%clk 0:01:35]}  Re1+ {[%clk 0:00:58]} 42. Kf2 {[%clk 0:01:33]} 1-0


[Site "https://www.chess.com"]